[Event "Titled Tuesday Blitz September 28 2021"]
[White "Suvorov, Alexander"]
[Black "Molina, Roberto Junio Brito"]
[WhiteFideId "12977063"]
[BlackFideId "2109450"]
[WhiteElo "2221"]
[BlackElo "2402"]
[Result "0-1"]
[Round "08"]
[TimeControl "180+1"]
[Date "2021.09.28"]
[WhiteClock "0:00:55"]
[BlackClock "0:01:32"]

1. b3 {[%clk 0:02:07]}  d5 {[%clk 0:02:57]} 2. Bb2 {[%clk 0:02:08]}  Bg4 {[%clk 0:02:57]} 3. h3 {[%clk 0:02:05]}  Bh5 {[%clk 0:02:57]} 4. g4 {[%clk 0:02:04]}  Bg6 {[%clk 0:02:57]} 5. Bg2 {[%clk 0:02:05]}  c6 {[%clk 0:02:57]} 6. d3 {[%clk 0:02:05]}  f6 {[%clk 0:02:57]} 7. f4 {[%clk 0:02:05]}  e6 {[%clk 0:02:54]} 8. Nf3 {[%clk 0:02:00]}  Bd6 {[%clk 0:02:54]} 9. e3 {[%clk 0:02:00]}  Nd7 {[%clk 0:02:53]} 10. O-O {[%clk 0:02:00]}  Ne7 {[%clk 0:02:52]} 11. Nd4 {[%clk 0:01:59]}  Bf7 {[%clk 0:02:50]} 12. e4 {[%clk 0:02:00]}  Qb6 {[%clk 0:02:47]} 13. Kh1 {[%clk 0:01:58]}  h5 {[%clk 0:02:37]} 14. g5 {[%clk 0:01:57]}  O-O-O {[%clk 0:02:33]} 15. a4 {[%clk 0:01:42]}  Qc7 {[%clk 0:02:18]} 16. e5 {[%clk 0:01:23]}  fxe5 {[%clk 0:02:10]} 17. fxe5 {[%clk 0:01:24]}  Nxe5 {[%clk 0:02:11]} 18. Rxf7 {[%clk 0:01:16]}  Nxf7 {[%clk 0:02:12]} 19. Nxe6 {[%clk 0:01:16]}  Qd7 {[%clk 0:02:08]} 20. Nxd8 {[%clk 0:01:16]}  Kxd8 {[%clk 0:02:00]} 21. Bxg7 {[%clk 0:01:14]}  Rg8 {[%clk 0:01:59]} 22. Bf6 {[%clk 0:01:11]}  Nxg5 {[%clk 0:01:51]} 23. Qxh5 {[%clk 0:01:03]}  Qf5 {[%clk 0:01:46]} 24. Bxe7+ {[%clk 0:00:56]}  Kxe7 {[%clk 0:01:41]} 25. Nd2 {[%clk 0:00:55]}  Qe5 {[%clk 0:01:32]} 0-1


[Site "https://www.chess.com"]

[Event "Titled Tuesday Blitz September 28 2021"]
[White "Timofeev, Artyom"]
[Black "Tang, Andrew"]
[WhiteFideId "4140419"]
[BlackFideId "2059630"]
[WhiteElo "2591"]
[BlackElo "2588"]
[Result "1-0"]
[Round "08"]
[TimeControl "180+1"]
[Date "2021.09.28"]
[WhiteClock "0:01:51"]
[BlackClock "0:00:31"]

1. c4 {[%clk 0:03:00]}  e6 {[%clk 0:02:59]} 2. Nf3 {[%clk 0:02:59]}  d5 {[%clk 0:02:58]} 3. b3 {[%clk 0:02:59]}  Nf6 {[%clk 0:02:57]} 4. Bb2 {[%clk 0:02:59]}  Bd6 {[%clk 0:02:58]} 5. e3 {[%clk 0:02:59]}  O-O {[%clk 0:02:58]} 6. Be2 {[%clk 0:02:59]}  b6 {[%clk 0:02:58]} 7. O-O {[%clk 0:02:59]}  Bb7 {[%clk 0:02:59]} 8. d3 {[%clk 0:02:58]}  Nbd7 {[%clk 0:02:58]} 9. Nbd2 {[%clk 0:02:58]}  Qe7 {[%clk 0:02:53]} 10. a3 {[%clk 0:02:57]}  Rfe8 {[%clk 0:02:44]} 11. Qc2 {[%clk 0:02:56]}  c5 {[%clk 0:02:41]} 12. cxd5 {[%clk 0:02:56]}  exd5 {[%clk 0:02:41]} 13. d4 {[%clk 0:02:56]}  Rac8 {[%clk 0:02:38]} 14. Qf5 {[%clk 0:02:55]}  Rc7 {[%clk 0:02:14]} 15. dxc5 {[%clk 0:02:52]}  bxc5 {[%clk 0:02:15]} 16. Rfe1 {[%clk 0:02:49]}  Rb8 {[%clk 0:02:03]} 17. Rab1 {[%clk 0:02:45]}  Bc8 {[%clk 0:02:02]} 18. Qg5 {[%clk 0:02:44]}  h6 {[%clk 0:02:01]} 19. Qh4 {[%clk 0:02:44]}  Ne5 {[%clk 0:01:52]} 20. Nxe5 {[%clk 0:02:37]}  Bxe5 {[%clk 0:01:53]} 21. Bxe5 {[%clk 0:02:38]}  Qxe5 {[%clk 0:01:54]} 22. Nf3 {[%clk 0:02:38]}  Qc3 {[%clk 0:01:54]} 23. Rec1 {[%clk 0:02:36]}  Qa5 {[%clk 0:01:49]} 24. Qf4 {[%clk 0:02:33]}  Rcb7 {[%clk 0:01:43]} 25. b4 {[%clk 0:02:28]}  Qxa3 {[%clk 0:01:43]} 26. Rxc5 {[%clk 0:02:27]}  Ne4 {[%clk 0:01:12]} 27. Rc2 {[%clk 0:02:16]}  Bd7 {[%clk 0:01:00]} 28. h3 {[%clk 0:02:00]}  Ba4 {[%clk 0:00:34]} 29. Rc7 {[%clk 0:01:52]}  Nc3 {[%clk 0:00:31]} 30. Qxf7+ {[%clk 0:01:51]} 1-0


[Site "https://www.chess.com"]

[Event "Titled Tuesday Blitz September 28 2021"]
[White "Visakh N R"]
[Black "Stribuk, Artiom"]
[WhiteFideId "25012223"]
[BlackFideId "13515659"]
[WhiteElo "2454"]
[BlackElo "2224"]
[Result "0-1"]
[Round "08"]
[TimeControl "180+1"]
[Date "2021.09.28"]
[WhiteClock "0:01:03"]
[BlackClock "0:00:18"]

1. d4 {[%clk 0:03:00]}  Nf6 {[%clk 0:02:59]} 2. c4 {[%clk 0:03:00]}  g6 {[%clk 0:02:59]} 3. Nc3 {[%clk 0:02:58]}  d5 {[%clk 0:02:59]} 4. cxd5 {[%clk 0:02:46]}  Nxd5 {[%clk 0:03:00]} 5. Bd2 {[%clk 0:02:47]}  Bg7 {[%clk 0:02:58]} 6. e4 {[%clk 0:02:47]}  Nxc3 {[%clk 0:02:58]} 7. Bxc3 {[%clk 0:02:48]}  O-O {[%clk 0:02:51]} 8. Nf3 {[%clk 0:02:47]}  Bg4 {[%clk 0:02:49]} 9. Be2 {[%clk 0:02:47]}  Nc6 {[%clk 0:02:47]} 10. d5 {[%clk 0:02:46]}  Bxc3+ {[%clk 0:02:47]} 11. bxc3 {[%clk 0:02:46]}  Bxf3 {[%clk 0:02:48]} 12. Bxf3 {[%clk 0:02:43]}  Ne5 {[%clk 0:02:48]} 13. Be2 {[%clk 0:02:43]}  c6 {[%clk 0:02:47]} 14. f4 {[%clk 0:02:41]}  Nd7 {[%clk 0:02:47]} 15. Rb1 {[%clk 0:02:40]}  Qa5 {[%clk 0:02:31]} 16. O-O {[%clk 0:02:40]}  cxd5 {[%clk 0:02:08]} 17. Rxb7 {[%clk 0:02:36]}  Nc5 {[%clk 0:02:02]} 18. Rxe7 {[%clk 0:02:15]}  Nxe4 {[%clk 0:02:01]} 19. Qd4 {[%clk 0:02:15]}  Nxc3 {[%clk 0:01:59]} 20. Bf3 {[%clk 0:02:14]}  Qb6 {[%clk 0:01:53]} 21. Qxb6 {[%clk 0:02:09]}  axb6 {[%clk 0:01:54]} 22. Rf2 {[%clk 0:02:07]}  Rfe8 {[%clk 0:01:41]} 23. Rxe8+ {[%clk 0:02:04]}  Rxe8 {[%clk 0:01:42]} 24. Rb2 {[%clk 0:02:03]}  b5 {[%clk 0:01:23]} 25. Rd2 {[%clk 0:01:55]}  Re1+ {[%clk 0:01:14]} 26. Kf2 {[%clk 0:01:54]}  Ra1 {[%clk 0:01:15]} 27. Bxd5 {[%clk 0:01:54]}  Nxd5 {[%clk 0:01:13]} 28. Rxd5 {[%clk 0:01:55]}  Rxa2+ {[%clk 0:01:14]} 29. Kg3 {[%clk 0:01:55]}  Rb2 {[%clk 0:01:12]} 30. Rd7 {[%clk 0:01:54]}  Kg7 {[%clk 0:01:12]} 31. Rb7 {[%clk 0:01:54]}  b4 {[%clk 0:01:12]} 32. Kf3 {[%clk 0:01:54]}  h5 {[%clk 0:01:09]} 33. h4 {[%clk 0:01:47]}  b3 {[%clk 0:01:06]} 34. g4 {[%clk 0:01:34]}  hxg4+ {[%clk 0:01:02]} 35. Kxg4 {[%clk 0:01:35]}  Rb1 {[%clk 0:01:02]} 36. Kg3 {[%clk 0:01:34]}  Kf6 {[%clk 0:01:00]} 37. Kg2 {[%clk 0:01:34]}  b2 {[%clk 0:00:47]} 38. Rb5 {[%clk 0:01:19]}  Ke6 {[%clk 0:00:25]} 39. Kh2 {[%clk 0:01:18]}  Ke7 {[%clk 0:00:21]} 40. Kg2 {[%clk 0:01:18]}  f6 {[%clk 0:00:21]} 41. Rb6 {[%clk 0:01:15]}  f5 {[%clk 0:00:18]} 42. Kh2 {[%clk 0:01:14]}  Kd7 {[%clk 0:00:18]} 43. Kg2 {[%clk 0:01:14]}  Kc7 {[%clk 0:00:18]} 44. Rb5 {[%clk 0:01:15]}  Kc6 {[%clk 0:00:19]} 45. Rb3 {[%clk 0:01:15]}  Kc5 {[%clk 0:00:19]} 46. Rb8 {[%clk 0:01:14]}  Kc4 {[%clk 0:00:18]} 47. Rb7 {[%clk 0:01:13]}  Kc3 {[%clk 0:00:18]} 48. Rc7+ {[%clk 0:01:12]}  Kd3 {[%clk 0:00:18]} 49. Rb7 {[%clk 0:01:03]}  Ke4 {[%clk 0:00:18]} 0-1


[Site "https://www.chess.com"]

[Event "Titled Tuesday Blitz September 28 2021"]
[White "Vlachos, Anatole"]
[Black "Shkapenko, Pavel"]
[WhiteFideId "26093189"]
[BlackFideId "4151933"]
[WhiteElo "2350"]
[BlackElo "2386"]
[Result "0-1"]
[Round "08"]
[TimeControl "180+1"]
[Date "2021.09.28"]
[WhiteClock "0:00:07"]
[BlackClock "0:00:34"]

1. e4 {[%clk 0:03:00]}  e5 {[%clk 0:02:59]} 2. Nf3 {[%clk 0:03:01]}  Nc6 {[%clk 0:02:59]} 3. Bc4 {[%clk 0:03:01]}  d6 {[%clk 0:02:59]} 4. c3 {[%clk 0:02:52]}  f5 {[%clk 0:02:58]} 5. exf5 {[%clk 0:02:50]}  Bxf5 {[%clk 0:02:57]} 6. d4 {[%clk 0:02:49]}  e4 {[%clk 0:02:57]} 7. d5 {[%clk 0:02:34]}  exf3 {[%clk 0:02:49]} 8. Qxf3 {[%clk 0:02:32]}  Nce7 {[%clk 0:02:48]} 9. O-O {[%clk 0:02:26]}  Qd7 {[%clk 0:02:46]} 10. Na3 {[%clk 0:02:16]}  a6 {[%clk 0:02:46]} 11. Re1 {[%clk 0:02:12]}  Nf6 {[%clk 0:02:45]} 12. Bg5 {[%clk 0:02:10]}  O-O-O {[%clk 0:02:26]} 13. Qe2 {[%clk 0:01:42]}  Kb8 {[%clk 0:02:11]} 14. b4 {[%clk 0:01:35]}  Nc8 {[%clk 0:01:57]} 15. Bxa6 {[%clk 0:01:19]}  bxa6 {[%clk 0:01:51]} 16. Qxa6 {[%clk 0:01:20]}  Be7 {[%clk 0:01:37]} 17. Nb5 {[%clk 0:00:59]}  Bd3 {[%clk 0:01:33]} 18. c4 {[%clk 0:00:23]}  Bxc4 {[%clk 0:01:23]} 19. a4 {[%clk 0:00:22]}  Nxd5 {[%clk 0:01:23]} 20. Bxe7 {[%clk 0:00:21]}  Ndxe7 {[%clk 0:01:22]} 21. Rec1 {[%clk 0:00:20]}  d5 {[%clk 0:01:22]} 22. Qa5 {[%clk 0:00:20]}  Nc6 {[%clk 0:01:09]} 23. Qa6 {[%clk 0:00:19]}  Rhf8 {[%clk 0:00:47]} 24. h3 {[%clk 0:00:18]}  Rf6 {[%clk 0:00:47]} 25. Rc3 {[%clk 0:00:14]}  Nxb4 {[%clk 0:00:40]} 26. Qa5 {[%clk 0:00:14]}  c5 {[%clk 0:00:40]} 27. Rd1 {[%clk 0:00:09]}  Ra6 {[%clk 0:00:40]} 28. Rxc4 {[%clk 0:00:07]}  Rxa5 {[%clk 0:00:39]} 29. Rxc5 {[%clk 0:00:07]}  Rxa4 {[%clk 0:00:34]} 0-1


[Site "https://www.chess.com"]

[Event "Titled Tuesday Blitz September 28 2021"]
[White "Vokhidov, Shamsiddin"]
[Black "Sjugirov, Sanan"]
[WhiteFideId "14204223"]
[BlackFideId "4189302"]
[WhiteElo "2616"]
[BlackElo "2654"]
[Result "0-1"]
[Round "08"]
[TimeControl "180+1"]
[Date "2021.09.28"]
[WhiteClock "0:00:05"]
[BlackClock "0:00:09"]

1. e4 {[%clk 0:03:00]}  c5 {[%clk 0:02:59]} 2. Nf3 {[%clk 0:03:01]}  Nc6 {[%clk 0:02:59]} 3. Bb5 {[%clk 0:03:00]}  e6 {[%clk 0:02:59]} 4. Bxc6 {[%clk 0:02:57]}  bxc6 {[%clk 0:02:58]} 5. d3 {[%clk 0:02:58]}  Qc7 {[%clk 0:02:56]} 6. O-O {[%clk 0:02:58]}  Ne7 {[%clk 0:02:50]} 7. Ng5 {[%clk 0:02:55]}  h6 {[%clk 0:02:35]} 8. Qh5 {[%clk 0:02:54]}  g6 {[%clk 0:02:29]} 9. Qh4 {[%clk 0:02:54]}  Bg7 {[%clk 0:02:28]} 10. Nh3 {[%clk 0:02:53]}  g5 {[%clk 0:02:24]} 11. Qh5 {[%clk 0:02:52]}  e5 {[%clk 0:02:19]} 12. Kh1 {[%clk 0:02:35]}  d6 {[%clk 0:02:17]} 13. Ng1 {[%clk 0:02:32]}  Qd7 {[%clk 0:02:10]} 14. Nd2 {[%clk 0:02:28]}  Qg4 {[%clk 0:02:00]} 15. Qxg4 {[%clk 0:02:27]}  Bxg4 {[%clk 0:02:01]} 16. a3 {[%clk 0:02:28]}  Be6 {[%clk 0:01:50]} 17. b4 {[%clk 0:02:26]}  cxb4 {[%clk 0:01:48]} 18. axb4 {[%clk 0:02:26]}  Kd7 {[%clk 0:01:47]} 19. Ne2 {[%clk 0:02:06]}  Rhb8 {[%clk 0:01:46]} 20. Ra4 {[%clk 0:02:04]}  a5 {[%clk 0:01:34]} 21. bxa5 {[%clk 0:02:00]}  Rb5 {[%clk 0:01:34]} 22. Nc4 {[%clk 0:01:18]}  Bxc4 {[%clk 0:01:33]} 23. Rxc4 {[%clk 0:01:14]}  Raxa5 {[%clk 0:01:19]} 24. Bd2 {[%clk 0:01:13]}  Ra3 {[%clk 0:01:07]} 25. g3 {[%clk 0:01:12]}  d5 {[%clk 0:00:59]} 26. Rb4 {[%clk 0:01:10]}  Rxb4 {[%clk 0:00:58]} 27. Bxb4 {[%clk 0:01:11]}  Ra2 {[%clk 0:00:58]} 28. Rc1 {[%clk 0:01:07]}  dxe4 {[%clk 0:00:39]} 29. Nc3 {[%clk 0:01:01]}  Rb2 {[%clk 0:00:38]} 30. Ba3 {[%clk 0:01:01]}  Rb8 {[%clk 0:00:37]} 31. dxe4 {[%clk 0:00:59]}  Nc8 {[%clk 0:00:32]} 32. Rd1+ {[%clk 0:00:55]}  Kc7 {[%clk 0:00:30]} 33. Kg2 {[%clk 0:00:53]}  Ra8 {[%clk 0:00:29]} 34. Bc5 {[%clk 0:00:52]}  Bf6 {[%clk 0:00:27]} 35. Rd3 {[%clk 0:00:34]}  Be7 {[%clk 0:00:20]} 36. Bxe7 {[%clk 0:00:23]}  Nxe7 {[%clk 0:00:21]} 37. Rf3 {[%clk 0:00:24]}  Rf8 {[%clk 0:00:20]} 38. Na4 {[%clk 0:00:22]}  f5 {[%clk 0:00:14]} 39. Nb2 {[%clk 0:00:18]}  f4 {[%clk 0:00:12]} 40. Nc4 {[%clk 0:00:16]}  g4 {[%clk 0:00:08]} 41. Ra3 {[%clk 0:00:15]}  f3+ {[%clk 0:00:09]} 42. Kf1 {[%clk 0:00:15]}  Rb8 {[%clk 0:00:07]} 43. Ra7+ {[%clk 0:00:12]}  Kd8 {[%clk 0:00:07]} 44. Ke1 {[%clk 0:00:12]}  Rb4 {[%clk 0:00:07]} 45. Nd6 {[%clk 0:00:10]}  Rd4 {[%clk 0:00:04]} 46. Nf7+ {[%clk 0:00:04]}  Ke8 {[%clk 0:00:04]} 47. Nxh6 {[%clk 0:00:03]}  Rxe4+ {[%clk 0:00:05]} 48. Kd2 {[%clk 0:00:04]}  Re2+ {[%clk 0:00:05]} 49. Kd3 {[%clk 0:00:04]}  e4+ {[%clk 0:00:05]} 50. Kd4 {[%clk 0:00:04]}  e3 {[%clk 0:00:05]} 51. Nxg4 {[%clk 0:00:03]}  exf2 {[%clk 0:00:05]} 52. Nxf2 {[%clk 0:00:03]}  Rxf2 {[%clk 0:00:06]} 53. Ke3 {[%clk 0:00:04]}  Rxh2 {[%clk 0:00:06]} 54. Kxf3 {[%clk 0:00:04]}  Rxc2 {[%clk 0:00:06]} 55. g4 {[%clk 0:00:05]}  Kf7 {[%clk 0:00:06]} 56. g5 {[%clk 0:00:05]}  Rc1 {[%clk 0:00:05]} 57. g6+ {[%clk 0:00:05]}  Kf6 {[%clk 0:00:05]} 58. g7 {[%clk 0:00:05]}  Rg1 {[%clk 0:00:06]} 59. Ra8 {[%clk 0:00:04]}  Rxg7 {[%clk 0:00:06]} 60. Ke4 {[%clk 0:00:04]}  Rg4+ {[%clk 0:00:05]} 61. Kd3 {[%clk 0:00:04]}  Ke6 {[%clk 0:00:06]} 62. Rd8 {[%clk 0:00:04]}  Rg5 {[%clk 0:00:05]} 63. Kc4 {[%clk 0:00:04]}  Rd5 {[%clk 0:00:06]} 64. Rh8 {[%clk 0:00:04]}  Kd7 {[%clk 0:00:06]} 65. Rh7 {[%clk 0:00:04]}  Kd6 {[%clk 0:00:06]} 66. Rh6+ {[%clk 0:00:04]}  Kc7 {[%clk 0:00:06]} 67. Rh7 {[%clk 0:00:04]}  Rd7 {[%clk 0:00:07]} 68. Kc5 {[%clk 0:00:04]}  Nc8 {[%clk 0:00:06]} 69. Rh6 {[%clk 0:00:04]}  Rd5+ {[%clk 0:00:06]} 70. Kc4 {[%clk 0:00:04]}  Nd6+ {[%clk 0:00:07]} 71. Kc3 {[%clk 0:00:04]}  c5 {[%clk 0:00:07]} 72. Rh8 {[%clk 0:00:04]}  Kc6 {[%clk 0:00:08]} 73. Rh6 {[%clk 0:00:04]}  Rf5 {[%clk 0:00:08]} 74. Rg6 {[%clk 0:00:04]}  Rf3+ {[%clk 0:00:08]} 75. Kd2 {[%clk 0:00:04]}  c4 {[%clk 0:00:08]} 76. Rg5 {[%clk 0:00:04]}  Rd3+ {[%clk 0:00:08]} 77. Kc2 {[%clk 0:00:04]}  Rh3 {[%clk 0:00:09]} 78. Rg8 {[%clk 0:00:03]}  Nb5 {[%clk 0:00:09]} 79. Rc8+ {[%clk 0:00:03]}  Kd5 {[%clk 0:00:09]} 80. Rd8+ {[%clk 0:00:04]}  Kc5 {[%clk 0:00:09]} 81. Rc8+ {[%clk 0:00:04]}  Kb4 {[%clk 0:00:09]} 82. Rb8 {[%clk 0:00:05]}  Rh2+ {[%clk 0:00:09]} 0-1


[Site "https://www.chess.com"]

[Event "Titled Tuesday Blitz September 28 2021"]
[White "Weetik, Vjacheslav"]
[Black "Spitzl, Vinzent"]
[WhiteFideId "4153472"]
[BlackFideId "12901253"]
[WhiteElo "2469"]
[BlackElo "2160"]
[Result "1-0"]
[Round "08"]
[TimeControl "180+1"]
[Date "2021.09.28"]
[WhiteClock "0:00:12"]
[BlackClock "0:00:22"]

1. e4 {[%clk 0:02:51]}  d5 {[%clk 0:02:56]} 2. exd5 {[%clk 0:02:51]}  Qxd5 {[%clk 0:02:57]} 3. Nc3 {[%clk 0:02:51]}  Qd8 {[%clk 0:02:57]} 4. d4 {[%clk 0:02:52]}  Nf6 {[%clk 0:02:57]} 5. Nf3 {[%clk 0:02:52]}  g6 {[%clk 0:02:56]} 6. Ne5 {[%clk 0:02:48]}  Bg7 {[%clk 0:02:55]} 7. Bc4 {[%clk 0:02:47]}  O-O {[%clk 0:02:55]} 8. Be3 {[%clk 0:02:46]}  a6 {[%clk 0:02:55]} 9. a4 {[%clk 0:02:41]}  Nbd7 {[%clk 0:02:50]} 10. f4 {[%clk 0:02:39]}  c5 {[%clk 0:02:44]} 11. O-O {[%clk 0:02:33]}  cxd4 {[%clk 0:02:42]} 12. Bxd4 {[%clk 0:02:31]}  Qc7 {[%clk 0:02:40]} 13. Qe2 {[%clk 0:02:24]}  Nc5 {[%clk 0:02:31]} 14. a5 {[%clk 0:02:07]}  Be6 {[%clk 0:02:30]} 15. Kh1 {[%clk 0:01:47]}  Bxc4 {[%clk 0:02:26]} 16. Qxc4 {[%clk 0:01:46]}  Rac8 {[%clk 0:02:23]} 17. Rad1 {[%clk 0:01:23]}  Ne6 {[%clk 0:02:18]} 18. Qxc7 {[%clk 0:01:21]}  Rxc7 {[%clk 0:02:18]} 19. Bb6 {[%clk 0:01:22]}  Rcc8 {[%clk 0:02:17]} 20. g3 {[%clk 0:01:07]}  Nc5 {[%clk 0:02:11]} 21. Rfe1 {[%clk 0:01:00]}  Rfe8 {[%clk 0:01:52]} 22. Re2 {[%clk 0:00:55]}  h5 {[%clk 0:01:50]} 23. Kg2 {[%clk 0:00:53]}  Ng4 {[%clk 0:01:49]} 24. Nd5 {[%clk 0:00:51]}  Nxe5 {[%clk 0:01:44]} 25. fxe5 {[%clk 0:00:52]}  Ne6 {[%clk 0:01:44]} 26. b3 {[%clk 0:00:43]}  Rc6 {[%clk 0:01:35]} 27. c4 {[%clk 0:00:43]}  Rcc8 {[%clk 0:01:30]} 28. h4 {[%clk 0:00:39]}  Bh6 {[%clk 0:01:25]} 29. Rf1 {[%clk 0:00:29]}  Ng7 {[%clk 0:01:12]} 30. Ref2 {[%clk 0:00:25]}  Nf5 {[%clk 0:01:12]} 31. Rxf5 {[%clk 0:00:25]}  gxf5 {[%clk 0:01:12]} 32. Rxf5 {[%clk 0:00:26]}  Rc6 {[%clk 0:01:10]} 33. Rxh5 {[%clk 0:00:25]}  Bg7 {[%clk 0:01:08]} 34. Rg5 {[%clk 0:00:23]}  Rg6 {[%clk 0:01:03]} 35. Rxg6 {[%clk 0:00:21]}  fxg6 {[%clk 0:01:04]} 36. e6 {[%clk 0:00:20]}  Be5 {[%clk 0:01:01]} 37. Bc5 {[%clk 0:00:18]}  Kg7 {[%clk 0:00:45]} 38. Bxe7 {[%clk 0:00:17]}  Bd4 {[%clk 0:00:31]} 39. g4 {[%clk 0:00:17]}  Be5 {[%clk 0:00:30]} 40. g5 {[%clk 0:00:17]}  Bd4 {[%clk 0:00:26]} 41. Bf6+ {[%clk 0:00:15]}  Bxf6 {[%clk 0:00:25]} 42. gxf6+ {[%clk 0:00:16]}  Kf8 {[%clk 0:00:24]} 43. Nc7 {[%clk 0:00:14]}  Rc8 {[%clk 0:00:22]} 44. e7+ {[%clk 0:00:12]} 1-0


[Site "https://www.chess.com"]

[Event "Titled Tuesday Blitz September 28 2021"]
[White "pawel83"]
[Black "Gaehwiler, Gabriel"]
[BlackFideId "1314530"]
[WhiteElo "2449"]
[BlackElo "2320"]
[Result "0-1"]
[Round "08"]
[TimeControl "180+1"]
[Date "2021.09.28"]
[WhiteClock "0:00:02"]
[BlackClock "0:00:17"]

1. d4 {[%clk 0:02:53]}  Nf6 {[%clk 0:02:59]} 2. Nf3 {[%clk 0:02:51]}  g6 {[%clk 0:02:59]} 3. c4 {[%clk 0:02:49]}  Bg7 {[%clk 0:02:59]} 4. Nc3 {[%clk 0:02:50]}  O-O {[%clk 0:03:00]} 5. e4 {[%clk 0:02:49]}  d6 {[%clk 0:03:00]} 6. Be2 {[%clk 0:02:50]}  Bg4 {[%clk 0:03:00]} 7. O-O {[%clk 0:02:49]}  e5 {[%clk 0:02:59]} 8. dxe5 {[%clk 0:02:42]}  dxe5 {[%clk 0:02:55]} 9. Qxd8 {[%clk 0:02:40]}  Rxd8 {[%clk 0:02:56]} 10. Bg5 {[%clk 0:02:40]}  Re8 {[%clk 0:02:41]} 11. Nd2 {[%clk 0:02:35]}  Bxe2 {[%clk 0:02:39]} 12. Nxe2 {[%clk 0:02:36]}  c6 {[%clk 0:02:39]} 13. f3 {[%clk 0:02:35]}  Na6 {[%clk 0:02:39]} 14. Nb3 {[%clk 0:02:34]}  Nc7 {[%clk 0:02:38]} 15. Rfd1 {[%clk 0:02:32]}  Ne6 {[%clk 0:02:38]} 16. Be3 {[%clk 0:02:32]}  Bf8 {[%clk 0:02:38]} 17. a3 {[%clk 0:02:30]}  a5 {[%clk 0:02:36]} 18. a4 {[%clk 0:02:23]}  Bb4 {[%clk 0:02:36]} 19. Bb6 {[%clk 0:02:18]}  Re7 {[%clk 0:02:28]} 20. Rd3 {[%clk 0:02:15]}  Nd7 {[%clk 0:02:28]} 21. Be3 {[%clk 0:02:12]}  Ndc5 {[%clk 0:02:26]} 22. Nxc5 {[%clk 0:02:12]}  Nxc5 {[%clk 0:02:27]} 23. Bxc5 {[%clk 0:02:10]}  Bxc5+ {[%clk 0:02:28]} 24. Kf1 {[%clk 0:02:10]}  f5 {[%clk 0:02:25]} 25. exf5 {[%clk 0:02:02]}  gxf5 {[%clk 0:02:26]} 26. Rad1 {[%clk 0:02:01]}  Rae8 {[%clk 0:02:23]} 27. Ng3 {[%clk 0:01:58]}  Rf7 {[%clk 0:01:31]} 28. Rd7 {[%clk 0:01:53]}  Ref8 {[%clk 0:01:30]} 29. Ke2 {[%clk 0:01:47]}  Bd4 {[%clk 0:01:24]} 30. Rxf7 {[%clk 0:01:43]}  Rxf7 {[%clk 0:01:25]} 31. b3 {[%clk 0:01:41]}  c5 {[%clk 0:01:22]} 32. Nf1 {[%clk 0:01:39]}  Rg7 {[%clk 0:01:21]} 33. g3 {[%clk 0:01:39]}  Kf7 {[%clk 0:01:21]} 34. Ne3 {[%clk 0:01:38]}  Ke6 {[%clk 0:01:21]} 35. Nd5 {[%clk 0:01:38]}  Rg6 {[%clk 0:01:17]} 36. Kf1 {[%clk 0:01:33]}  Rg8 {[%clk 0:01:13]} 37. Re1 {[%clk 0:01:30]}  Rd8 {[%clk 0:01:11]} 38. Kg2 {[%clk 0:01:23]}  Rg8 {[%clk 0:01:07]} 39. h3 {[%clk 0:01:21]}  h5 {[%clk 0:01:06]} 40. Nf4+ {[%clk 0:01:19]}  Kf7 {[%clk 0:01:01]} 41. Nxh5 {[%clk 0:01:19]}  Rg6 {[%clk 0:01:01]} 42. g4 {[%clk 0:01:17]}  Rb6 {[%clk 0:01:00]} 43. Rb1 {[%clk 0:01:11]}  Rb4 {[%clk 0:00:59]} 44. Ng3 {[%clk 0:01:08]}  b5 {[%clk 0:00:55]} 45. cxb5 {[%clk 0:00:50]}  c4 {[%clk 0:00:54]} 46. Nxf5 {[%clk 0:00:49]}  Rxb3 {[%clk 0:00:48]} 47. Rc1 {[%clk 0:00:39]}  c3 {[%clk 0:00:46]} 48. Nd6+ {[%clk 0:00:30]}  Ke6 {[%clk 0:00:42]} 49. Ne4 {[%clk 0:00:30]}  Ra3 {[%clk 0:00:23]} 50. b6 {[%clk 0:00:24]}  Rb3 {[%clk 0:00:22]} 51. b7 {[%clk 0:00:23]}  Rxb7 {[%clk 0:00:22]} 52. Nxc3 {[%clk 0:00:22]}  Rb2+ {[%clk 0:00:21]} 53. Kh1 {[%clk 0:00:18]}  Rb3 {[%clk 0:00:20]} 54. Ne4 {[%clk 0:00:15]}  Kd5 {[%clk 0:00:21]} 55. Nd2 {[%clk 0:00:14]}  Rb2 {[%clk 0:00:21]} 56. Rd1 {[%clk 0:00:14]}  Ra2 {[%clk 0:00:20]} 57. f4 {[%clk 0:00:14]}  Ke6 {[%clk 0:00:16]} 58. fxe5 {[%clk 0:00:13]}  Bxe5 {[%clk 0:00:17]} 59. Nc4 {[%clk 0:00:13]}  Bc7 {[%clk 0:00:17]} 60. Re1+ {[%clk 0:00:11]}  Kd5 {[%clk 0:00:17]} 61. Ne3+ {[%clk 0:00:11]}  Kd4 {[%clk 0:00:18]} 62. Nf5+ {[%clk 0:00:11]}  Kd5 {[%clk 0:00:18]} 63. Rd1+ {[%clk 0:00:11]}  Ke4 {[%clk 0:00:18]} 64. Rc1 {[%clk 0:00:11]}  Bf4 {[%clk 0:00:18]} 65. Rc4+ {[%clk 0:00:11]}  Kf3 {[%clk 0:00:18]} 66. Rxf4+ {[%clk 0:00:11]}  Kxf4 {[%clk 0:00:18]} 67. Nd6 {[%clk 0:00:10]}  Kg3 {[%clk 0:00:18]} 68. Ne4+ {[%clk 0:00:08]}  Kxh3 {[%clk 0:00:19]} 69. Kg1 {[%clk 0:00:08]}  Kxg4 {[%clk 0:00:19]} 70. Nc5 {[%clk 0:00:07]}  Kf3 {[%clk 0:00:18]} 71. Nb3 {[%clk 0:00:02]}  Rxa4 {[%clk 0:00:17]} 0-1


[Site "https://www.chess.com"]

[Event "Titled Tuesday Blitz September 28 2021"]
[White "Aghasiyev, Kamal"]
[Black "Bailey, Ben"]
[WhiteFideId "13402854"]
[BlackFideId "2021293"]
[WhiteElo "2210"]
[BlackElo "2349"]
[Result "1-0"]
[Round "09"]
[TimeControl "180+1"]
[Date "2021.09.28"]
[WhiteClock "0:00:03"]
[BlackClock "0:00:02"]

1. d4 {[%clk 0:02:55]}  Nf6 {[%clk 0:02:59]} 2. c4 {[%clk 0:02:54]}  g6 {[%clk 0:02:59]} 3. Nf3 {[%clk 0:02:49]}  Bg7 {[%clk 0:02:59]} 4. g3 {[%clk 0:02:50]}  O-O {[%clk 0:02:59]} 5. Bg2 {[%clk 0:02:50]}  d5 {[%clk 0:02:58]} 6. cxd5 {[%clk 0:02:48]}  Nxd5 {[%clk 0:02:59]} 7. O-O {[%clk 0:02:48]}  Nb6 {[%clk 0:02:59]} 8. Nc3 {[%clk 0:02:46]}  Nc6 {[%clk 0:02:57]} 9. d5 {[%clk 0:02:30]}  Bxc3 {[%clk 0:02:28]} 10. dxc6 {[%clk 0:02:00]}  Bg7 {[%clk 0:02:17]} 11. Bf4 {[%clk 0:01:42]}  Nd5 {[%clk 0:01:31]} 12. Be5 {[%clk 0:01:34]}  bxc6 {[%clk 0:01:31]} 13. Bxg7 {[%clk 0:01:34]}  Kxg7 {[%clk 0:01:32]} 14. Ne5 {[%clk 0:01:30]}  Bb7 {[%clk 0:01:09]} 15. Qb3 {[%clk 0:01:27]}  Qd6 {[%clk 0:00:54]} 16. Nxf7 {[%clk 0:00:45]}  Kxf7 {[%clk 0:00:38]} 17. Qxb7 {[%clk 0:00:44]}  Rab8 {[%clk 0:00:31]} 18. Qxa7 {[%clk 0:00:42]}  Rxb2 {[%clk 0:00:31]} 19. e4 {[%clk 0:00:30]}  Nc3 {[%clk 0:00:27]} 20. Qe3 {[%clk 0:00:24]}  Ne2+ {[%clk 0:00:25]} 21. Kh1 {[%clk 0:00:24]}  Nd4 {[%clk 0:00:24]} 22. e5 {[%clk 0:00:22]}  Qb4 {[%clk 0:00:20]} 23. Rad1 {[%clk 0:00:14]}  c5 {[%clk 0:00:19]} 24. Bd5+ {[%clk 0:00:14]}  e6 {[%clk 0:00:20]} 25. Qf4+ {[%clk 0:00:12]}  Kg7 {[%clk 0:00:18]} 26. Qg5 {[%clk 0:00:08]}  exd5 {[%clk 0:00:16]} 27. e6 {[%clk 0:00:07]}  Rf6 {[%clk 0:00:12]} 28. e7 {[%clk 0:00:07]}  Qb8 {[%clk 0:00:13]} 29. Rfe1 {[%clk 0:00:06]}  Qe8 {[%clk 0:00:12]} 30. Qe5 {[%clk 0:00:05]}  Nf3 {[%clk 0:00:12]} 31. Qxc7 {[%clk 0:00:03]}  Ne5 {[%clk 0:00:13]} 32. Qxe5 {[%clk 0:00:02]}  Rxf2 {[%clk 0:00:11]} 33. Rxd5 {[%clk 0:00:03]}  Kg8 {[%clk 0:00:07]} 34. Re2 {[%clk 0:00:02]}  Rf1+ {[%clk 0:00:05]} 35. Kg2 {[%clk 0:00:02]}  Rf7 {[%clk 0:00:05]} 36. Rd8 {[%clk 0:00:02]}  Rxe7 {[%clk 0:00:02]} 37. Qxe7 {[%clk 0:00:03]} 1-0


[Site "https://www.chess.com"]